Cogmind - Beta 16 @@@ ROGUE MODE // 2025.10.27 @ 08:08:50 Player: Moodge Result: Destroyed by S-10 Pest with Light Assault Rifle Performance ------------- Evolutions (0) 0 Regions Visited (2) 400 Robots Destroyed (8) 40 Value Destroyed (188) 188 Prototype IDs (0) 0 Alien Tech Used (0) 0 Bonus (0) 0 TOTAL SCORE: 628 Bonus ------- None Cogmind --------- Core Integrity 0/250 Matter 300/300 Energy 98/100 System Corruption 0% Temperature Cool (1) Movement Walking (120) Location -10/Subcaves Parts ------- > --- POWER (1) -------- (None) > --- PROPULSION (2) --- Aluminum Leg > --- UTILITY (2) ------ Small Storage Unit > --- WEAPON (2) ------- Hammer > --- INVENTORY (8) ---- Light Ion Engine Aluminum Leg Aluminum Leg Wheel Wheel Medium Laser Peak State ------------ > --- POWER ------------ Light Ion Engine > --- PROPULSION ------- Aluminum Leg Aluminum Leg > --- UTILITY ---------- Small Storage Unit Light Armor Plating > --- WEAPON ----------- Light Assault Rifle Light Assault Rifle > --- INVENTORY -------- Ion Engine Light Ion Engine Light Treads Light Treads Aluminum Leg Wheel Wheel Medium Laser [Rating: 7] Favorites ----------- Power Light Ion Engine Engine Light Ion Engine Propulsion Aluminum Leg Leg Aluminum Leg Utility Small Storage Unit Storage Small Storage Unit Protection Light Armor Plating Weapon Light Assault Rifle Ballistic Gun Light Assault Rifle Impact Weapon Hammer Build | -11 -10 -10 ------- Run | Yrd Mat Sub Slots Evolved . | . . . Power . | . . . Propulsion . | . . . Utility . | . . . Weapon . | . . . Parts Attached 11 | 4 5 2 Power 2 | 1 . 1 Engine 2 | 1 . 1 Core . | . . . Reactor . | . . . Propulsion 4 | 2 1 1 Treads . | . . . Leg 4 | 2 1 1 Wheel . | . . . Hover . | . . . Flight . | . . . Utility 2 | 1 1 . Device . | . . . Storage 1 | 1 . . Processor . | . . . Hackware . | . . . Protection 1 | . 1 . Artifact . | . . . Weapon 3 | . 3 . Energy Gun . | . . . Energy Cannon . | . . . Ballistic Gun 2 | . 2 . Ballistic Cannon . | . . . Launcher . | . . . Special Weapon . | . . . Impact Weapon 1 | . 1 . Slashing Weapon . | . . . Piercing Weapon . | . . . Special Melee Weapon . | . . . Unidentified Prototypes . | . . . Parts Lost 6 | . . 6 Power 2 | . . 2 Propulsion 2 | . . 2 Utility 1 | . . 1 Weapon 1 | . . 1 Highest Loss Streak 4 | . . 4 To Critical Strikes . | . . . Average Backups 7 | 4 7 7 Power 1 | . 1 1 Propulsion 4 | 2 4 4 Utility . | . . . Weapon 1 | 1 1 1 Tool/Special . | . . . Unused Backups 7 | . 2 5 Power 1 | . . 1 Propulsion 5 | . 2 3 Utility . | . . . Weapon 1 | . . 1 Tool/Special . | . . . Average Slot Usage (%) 87 | . 83 91 Engine 13 | . 14 13 Leg 26 | . 28 24 Storage 14 | . 14 14 Protection 8 | . 5 11 Ballistic Gun 13 | . 14 12 Impact Weapon 9 | . 5 14 Peak Build Rating 7 | 4 7 7 Average Rating 5 | 2 5 6 On Entrance 3 | . 4 7 Avg Prop Armor Cover (%) . | . . . Naked Turns . | . . . Heaviest Build 14 | 8 14 14 Greatest Support 20 | 20 20 20 Greatest Overweight (x) 1 | . . 1 Average Overweight (x) . | . . . Largest Inventory Capacity 8 | 8 8 8 Average Capacity 7 | 7 8 8 Most Carried 8 | 8 8 8 Average Carried 7 | 5 7 7 Final Capacity 8 | 8 8 8 Final Carried 8 | 8 8 6 Class Distribution -------------------- 100% | Mutant Dominant Class ---------------- Mutant | -10/Materials Mutant | -10/Subcaves Resources | -11 -10 -10 ----------- Run | Yrd Mat Sub Matter Collected 351 | 240 80 31 Remotely . | . . . Salvage Created 206 | . 135 71 Parts 14 | . 9 5 Haulers Intercepted . | . . . Recyclers Shooed . | . . . Parts Field Recycled . | . . . Retrieved Matter . | . . . Parts Self-Destructed 8 | . . 8 Prevented . | . . . Parts Restored . | . . . Kills | -11 -10 -10 ------- Run | Yrd Mat Sub Combat Hostiles Destroyed 7 | . 3 4 Melee 1 | . . 1 Guns 6 | . 3 3 Classes Destroyed 4 | . 2 2 Watcher 1 | . 1 . Swarmer 3 | . . 3 Grunt 3 | . 3 . Subdweller 1 | . . 1 Best Kill Streak 3 | . 2 3 Combat Bots Only 3 | . 2 3 Max Kills in Single Turn 1 | . 1 1 Gunslinging . | . . . Exploded . | . . . Melee 1 | . . 1 Uniques/NPCs Destroyed . | . . . Combat | -11 -10 -10 -------- Run | Yrd Mat Sub Hostile Shots Fired 165 | . 21 144 Missed 66 | . 10 56 Hits 99 | . 11 88 Projectile 99 | . 11 88 Critical Strikes 2 | . . 2 Damage Taken 976 | . 120 856 Core 254 | . 20 234 Absorbed by Shields . | . . . Core Remaining (%) 100 | 100 . . Volleys Fired 50 | . 25 25 Largest 2 | . 2 1 Hottest 40 | . 40 20 Shots Fired 58 | . 33 25 Gun 58 | . 33 25 Cannon . | . . . Launcher . | . . . Special . | . . . Kinetic 58 | . 33 25 Thermal . | . . . Explosive . | . . . Electromagnetic . | . . . Robot Hit Streak 6 | . 6 5 Robot Miss Streak 2 | . 1 2 Penetration Max . | . . . Secondary Targets . | . . . Shots Hit Robots 45 | . 25 20 Core Hits 18 | . 10 8 Critical Kills . | . . . Critical Parts Destroyed 1 | . . 1 Critical Strikes 1 | . . 1 Smash 1 | . . 1 Melee Attacks 7 | . . 7 Impact 7 | . . 7 Slashing . | . . . Piercing . | . . . Sneak Attacks . | . . . Combat Hostiles . | . . . Follow-up Attacks . | . . . Damage Inflicted 428 | . 216 212 Guns 309 | . 206 103 Cannons . | . . . Explosions . | . . . Melee 98 | . . 98 Ramming 21 | . 10 11 Kinetic 309 | . 206 103 Thermal . | . . . Explosive . | . . . Electromagnetic . | . . . Impact 98 | . . 98 Slashing . | . . . Piercing . | . . . Highest Corruption . | . . . Average Corruption . | . . . Corruption Purged . | . . . Corruption Blocked . | . . . Overload Shots . | . . . Overflow Damage 30 | . . 30 Projectiles . | . . . Explosions . | . . . Melee 30 | . . 30 Knockbacks 1 | . . 1 Impact 1 | . . 1 Kinetic . | . . . Secondary . | . . . Self-Inflicted Damage . | . . . Shots . | . . . Rammed . | . . . Targets Rammed 9 | . 1 8 Kicked 9 | . 1 8 Crushed . | . . . Highest Temperature 12 | . 12 . Average Temperature 5 | . 5 . Received Heat Transfer 210 | . 66 144 Siege Activations . | . . . Martial Activations . | . . . Shielding Activations . | . . . Robots Disrupted . | . . . Combat Hostiles . | . . . Robots Corrupted . | . . . Combat Hostiles . | . . . Parts Fried . | . . . Impact Corruptions 1 | . . 1 Robots Melted . | . . . Combat Hostiles . | . . . Parts Melted . | . . . Heat Transferred . | . . . Parts Sabotaged . | . . . Parts Stolen . | . . . Parts Stripped . | . . . Power Chain Reactions . | . . . Alert | -11 -10 -10 ------- Run | Yrd Mat Sub Maximum Alert Level . | . . . Low Security (%) 100 | 100 100 . Level 1 . | . . . Level 2 . | . . . Level 3 . | . . . Level 4 . | . . . Level 5 . | . . . High Security . | . . . Max Security . | . . . Peak Influence 42 | . 42 . Initial . | . . . Average 6 | . 7 . Influence Increases 202 | . 87 115 Destroy 0b10 Robot/C 120 | . 60 60 Destroy 0b10 Robot/NC 5 | . 5 . Destroy Leader 32 | . 22 10 Lose Combat Pursuer 45 | . . 45 Influence Decreases 167 | . 69 98 Entered New Map 10 | . . 10 Time Decay 127 | . 69 58 Lost Part 30 | . . 30 Squads Dispatched 2 | . 2 . Investigation 1 | . 1 . Extermination . | . . . Reinforcement 1 | . 1 . Assault . | . . . Garrison . | . . . Intercept . | . . . Searches Triggered . | . . . Construction Impeded . | . . . Haulers Reinforced . | . . . Active Scanning Responses . | . . . Cargo Convoy Interrupts . | . . . Stealth | -11 -10 -10 --------- Run | Yrd Mat Sub Distress Signals . | . . . Communications Jammed . | . . . Distress Signals . | . . . Times Spotted 19 | . 9 10 Peak Tracking Total 4 | . 3 4 Tactical Retreats 2 | . . 2 Traps | -11 -10 -10 ------- Run | Yrd Mat Sub Traps Triggered 1 | . 1 . Indirectly . | . . . Trap Hack Attempts . | . . . Triggered . | . . . Disarmed . | . . . Reprogrammed . | . . . Reused . | . . . Traps Extracted . | . . . Installed . | . . . Triggered . | . . . Machines | -11 -10 -10 ---------- Run | Yrd Mat Sub Machines Disabled . | . . . Max in Single Turn . | . . . Machines Repaired . | . . . Machines Dismantled . | . . . Machines Sabotaged . | . . . Overloaded Fab Kills . | . . . Hacking | -11 -10 -10 --------- Run | Yrd Mat Sub Machines Accessed 2 | . 2 . Terminals 2 | . 2 . Fabricators . | . . . Repair Stations . | . . . Recycling Units . | . . . Scanalyzers . | . . . Garrison Access . | . . . Total Hacks 6 | . 6 . Successful 3 | . 3 . Failed 3 | . 3 . Catastrophic . | . . . Database Lockouts . | . . . Manual 1 | . 1 . Terminals 6 | . 6 . Fabricators . | . . . Repair Stations . | . . . Recycling Units . | . . . Scanalyzers . | . . . Garrison Access . | . . . Terminal Hacks 2 | . 2 . Dispatch Records 2 | . 2 . Fabricator Hacks . | . . . Repair Station Hacks . | . . . Recycling Unit Hacks . | . . . Scanalyzer . | . . . Garrison Access Hacks . | . . . Unauthorized Hacks 1 | . 1 . Terminals 1 | . 1 . Track 1 | . 1 . Fabricators . | . . . Repair Stations . | . . . Recycling Units . | . . . Scanalyzers . | . . . Garrison Access . | . . . Data Cores Recovered . | . . . Used . | . . . Hacking Detections 1 | . 1 . Full Trace Events . | . . . Feedback Events . | . . . Feedback Blocked . | . . . Robot Schematics Acquired . | . . . Robots Built . | . . . Authchips . | . . . Time . | . . . Total Robot Build Rating . | . . . Part Schematics Acquired . | . . . Parts Built . | . . . Authchips . | . . . Time . | . . . Total Part Build Rating . | . . . Part Studies Acquired . | . . . Parts Repaired . | . . . Time . | . . . Parts Recycled . | . . . Recycled Matter . | . . . Retrieved Matter . | . . . Retrieved Components . | . . . Parts Scanalyzed . | . . . Part Schematics Acquired . | . . . Parts Damaged . | . . . Bothacking | -11 -10 -10 ------------ Run | Yrd Mat Sub Used RIF Installer . | . . . Robots Hacked . | . . . Non-combat . | . . . Combat . | . . . Robot Hacks Applied . | . . . Relay Couplers Released . | . . . Fabnet Peak Effective % . | . . . Robots Rewired . | . . . Allies Hacked . | . . . Hacks Repelled . | . . . Allies | -11 -10 -10 -------- Run | Yrd Mat Sub Total Allies . | . . . Largest Group . | . . . Highest-Rated Group . | . . . Highest-Rated Ally . | . . . Total Orders . | . . . Ally Attacks . | . . . Total Damage . | . . . Kills . | . . . Allies Corrupted . | . . . Allies Melted . | . . . Intel | -11 -10 -10 ------- Run | Yrd Mat Sub Active Infowar (turns) . | . . . Robot Analysis Total . | . . . Derelict Logs Recovered 1 | . . 1 Drone Launches . | . . . Drone Recoveries . | . . . Exploration | -11 -10 -10 ------------- Run | Yrd Mat Sub Turns Passed 902 | 69 466 367 Spaces Moved 537 | 59 258 220 Core 25 | 25 . . Treads . | . . . Legs 512 | 34 258 220 Wheels . | . . . Hover . | . . . Flight . | . . . Fastest Speed 50 | 50 120 120 Average Speed 120 | 90 120 129 Slowest Speed 190 | 120 120 190 Overloaded Moves . | . . . Propulsion Burnouts . | . . . Robots Hopped . | . . . Potential Cave-ins . | . . . Cave-ins Triggered . | . . . Exploration Rate (%) 19 | 4 34 19 Regions Visited 2 Branch Regions 1 Pre-discovered Areas 2 | . . 2 Known Exits Taken . | . . . Unknown Exits Taken 2 | 1 1 . Scrap Searched . | . . . Spaces Dug . | . . . Terrain Destroyed . | . . . Melee . | . . . Projectile . | . . . AOE . | . . . Terrain Rammed . | . . . Walls Destroyed . | . . . Machines Disabled . | . . . Actions | -11 -10 -10 --------- Run | Yrd Mat Sub Total 730 | 74 389 267 Wait 98 | . 93 5 Move 535 | 58 257 220 Hop . | . . . Pick Up 16 | 12 4 . Fast Attach 2 | . 2 . Attach 8 | 4 2 2 Detach . | . . . Swap 1 | . 1 . Drop 4 | . 4 . Fire 50 | . 25 25 Melee 7 | . . 7 Ram . | . . . Kick 9 | . 1 8 Crush . | . . . Escape Stasis . | . . . Rewire . | . . . Trap . | . . . Miscellaneous . | . . . Route ------- -11/Scrapyard -10/Materials (discovered 3 exits: [*Mat] / [*Min] / [*Sub]) -10/Subcaves (discovered 2 exits: [*Rec] / [*Scr]) History --------- Turn | Location | Event 2 | -11/Scrapyard | Met Revision 17 5 | -11/Scrapyard | Discovered new exit (range 16) 70 | -11/Scrapyard | Entered Materials 158 | -10/Materials | Discovered new exit (range 10) 267 | -10/Materials | Discovered new exit (range 16) 294 | -10/Materials | Discovered new exit (range 13) 307 | -10/Materials | Build established: Mutant 536 | -10/Materials | Entered Subcaves 537 | -10/Subcaves | Approached by a straggling Scientist 572 | -10/Subcaves | Learned location of Zion (-6) 768 | -10/Subcaves | Met a Zionite searching for "candidates" 854 | -10/Subcaves | Lost 4 parts (1p2n1u) 858 | -10/Subcaves | Discovered new exit (range 16) 863 | -10/Subcaves | Core integrity fell below 50% 889 | -10/Subcaves | Core integrity fell below 20% 903 | -10/Subcaves | Destroyed by S-10 Pest with Light Assault Rifle Last Messages --------------- Aluminum Leg destroyed. Flight Unit fries itself beyond repair. Lgt. Armor Plating destroyed. S-10 Pest destroyed. Acquired 15 matter. Lgt. Assault Rifle fries itself beyond repair. Acquired 1 matter. Flight Unit fries itself beyond repair. O8-WAY(c): "We're getting close, I can feel it." Subatomizers dissect the Sub. Optics. EXIT=FOUND Lgt. Assault Rifle destroyed. Subatomizers dissect the Sub. Optics. Kicked S-10 Pest. Ion Engine destroyed. Kicked S-10 Pest. Kicked S-10 Pest out of the way. Kicked S-10 Pest. S-10 Pest destroyed. Subatomizers dissect the Wheel. Map ----- +----------------------------------------------------+ | ?????????????# ### #????????????????????????? | | ?????????? ????# #????????????????????????? | | ???????? # ???????# #????????????????????????? | | ???????????????????## ##???????????????????????? | | ??????????????????## #???????????????????????? | | ?????????????????## #???????????????????????? | | ????????????????## #???????????????????????? | | ???????????????## ##??????????????????????? | | ???????????????# ####???????????????????? | | ???????????????# #???????????????????? | | ??????????????## ## ##???????????????????? | | ????????????? ## ##???????????????????? | | ???????????? "###### ##??????????????????? | | ???????????#" " ????## % #?????#????????????? | | ??????????#" ###?## % #???? #????????????? | | ????????? #" % % ### ##??? ?????????????? | | ????????# ? #???? #?????????????? | | ????????#? "" ##??? #?????????????? | | ????????? "## # ##??? #?????????????? | | ????????## ##?#" ## ##??? #??????????????? | | ?????????###????# ### ### %#?? #???? ""???????? | | ????????????????? #?#### ##?#" ### "??????? | | ????????????????? ##?##### ### ;;;% "??????? | | ?????????????????#??## # #%= t""??????? | | ???????????????????## %!%= % t""??????? | | ???????????# #### %%### ; "??????? | | ???????????# %#?##### ;;; ;; % "??????? | | ???????????# #?????? ##;;## """??????? | | ???????????## #?????? #??##???###???????? | | ????????????### #?????? #?????????????????? | | ??????????????# % ???????%#?????????????????? | | ??????????????## ???????##?????????????????? | | ???????????????## ?????????????????????????? | | ????????????????## #?????????????????????????? | | ?????????????????# ###?????????????????????????? | | ?????????????????# ????????????????????????????? | | ?????????????????# #????????????????????????????? | | ????????????????? ?????????????????????????????? | | ????????????????? ?????????????????????????????? | | ????????????????# ?????????????????????????????? | | ????????????????## ?????????????????????????????? | | ????????????????? % ?????????????????????????????? | | ????????????????? ??????????????????????????????? | | ?????????????????????????????????????????????????? | | ?????????????????????????????????????????????????? | | ?????????????????????????????????????????????????? | | ?????????????????????????????????????????????????? | | ?????????????????????????????????????????????????? | | ?????????????????????????????????????????????????? | +----------------------------------------------------+ Best States ------------- Heat Dissipation 25 Energy Generation 10 Energy Capacity 250 Matter Stores 300 Matter Capacity 300 Sight Range 16 Terrain Scan Density 10 Armor Coverage 150 Evasion (%) 55 Item Schematics ----------------- None Robot Schematics ------------------ None Fabricated ------------ Nothing Repaired ---------- Nothing Studied --------- None Alien Tech Used ----------------- None Achievements -------------- None Challenges ------------ None Game ------ Seed CoolingOpticalGenerator Manual? 0 Play Time 00:13:52 Cumulative 23.3 hours Start 2025.10.26 @ 17:24:43 End 2025.10.27 @ 08:08:50 Sessions 5 Manual Loads 0 Difficulty Rogue Special Mode None Game No. 75 Rogue 75 Adventurer 0 Explorer 0 Win Type - Total 0 Types 0/0/0/0/0/0/0/0/0/0 Lore% 10 Gallery% 22 Achievement% 18 Wizard Run 0 Options --------- Layout 0 ASCII 0 Keyboard 0 Movement Mouse Keybinds 0 Fullscreen 2 Font 24/Smallcaps Map View 76x50 Zoom Use 0% Tactical HUD 0 Map Filters NONE Filters NONE Steam 1 RUN: 264ebadf-7638-416a-af34-c575ea3d5479